lending/lending_fUSD_20250224
["ID","MTS","AMOUNT","RATE_DAILY","PERIOD"]
[354240163,1740359445524,-500.0,0.00016438,2]
[354240164,1740359445533,-1256.45,0.00016438,2]
[354240165,1740359445542,-2657.82,0.00016438,2]
[354240166,1740359445552,-869.8,0.00016438,2]
[354240167,1740359445562,-628.16,0.00016438,2]
[354240168,1740359445571,-391.60615031,0.00016438,2]
[354240169,1740359445580,-1106.91,0.00016438,2]
[354240170,1740359445590,-670.41,0.00016438,2]
[354240171,1740359445599,-1102.33,0.00016438,2]
[354240172,1740359445608,-638.99,0.00016438,2]
[354240173,1740359445618,-837.98,0.00016438,2]
[354240174,1740359445627,-829.79,0.00016438,2]
[354240175,1740359445637,-500.0,0.00016438,2]
[354240176,1740359445647,-500.0,0.00016438,2]
[354240177,1740359445656,-591.83,0.00016438,2]
[354240178,1740359445666,-500.0,0.00016438,2]
[354240179,1740359445675,-4221.01,0.00016438,2]
[354240180,1740359445685,-639.63,0.00016438,2]
[354240181,1740359445694,-972.03,0.00016438,2]
[354240182,1740359445705,-500.0,0.00016438,2]
[354240183,1740359445715,-496.27350272,0.00016438,2]
[354240184,1740359445725,-500.0,0.00016438,2]
[354240185,1740359445735,-500.0,0.00016438,2]
[354240186,1740359445744,-500.0,0.00016438,2]
[354240187,1740359445754,-652.56,0.00016438,2]
[354240188,1740359445763,-2270.27,0.00016438,2]
[354240189,1740359445773,-500.0,0.00016438,2]
[354240190,1740359445782,-1415.85,0.00016438,2]
[354240191,1740359445791,-500.0,0.00016438,2]
[354240192,1740359445800,-172.99813018,0.00016438,2]
[354240193,1740359445810,-500.0,0.00016438,2]
[354240194,1740359445819,-500.0,0.00016438,2]
[354240195,1740359445829,-2545.98,0.00016438,2]
[354240197,1740359445838,-1822.56,0.00016438,2]
[354240199,1740359445848,-500.0,0.00016438,2]
[354240201,1740359445857,-924.4,0.00016438,2]
[354240203,1740359445866,-500.0,0.00016438,2]
[354240205,1740359445875,-1313.26,0.00016438,2]
[354240207,1740359445885,-500.0,0.00016438,2]
[354240209,1740359445894,-1404.66,0.00016438,2]
[354240211,1740359445903,-500.0,0.00016438,2]
[354240213,1740359445913,-576.69,0.00016438,2]
[354240216,1740359445922,-582.13,0.00016438,2]
[354240218,1740359445932,-1921.93515011,0.00016438,2]
[354240223,1740359445969,-617.47484989,0.00016438,2]
[354240225,1740359445979,-500.0,0.00016438,2]
[354240227,1740359445989,-1456.31,0.00016438,2]
[354240229,1740359445999,-500.0,0.00016438,2]
[354240231,1740359446009,-519.83252617,0.00016438,2]
[354240233,1740359446020,-195.97747383,0.00016438,2]
[354240235,1740359446030,-636.02252617,0.00016438,2]
[354240290,1740359446575,-315.12747383,0.00016438,2]
[354240291,1740359446585,-1645.76,0.00016438,2]
[354240292,1740359446594,-1074.86,0.00016438,2]
[354240293,1740359446603,-1954.67,0.00016438,2]
[354240294,1740359446613,-635.38,0.00016438,2]
[354240295,1740359446622,-698.08,0.00016438,2]
[354240296,1740359446631,-500.0,0.00016438,2]
[354240298,1740359446641,-500.0,0.00016438,2]
[354240300,1740359446650,-2221.4,0.00016438,2]
[354240302,1740359446659,-3522.96,0.00016438,2]
[354240304,1740359446671,-503.34841367,0.00016438,2]
[354240306,1740359446680,-1727.9,0.00016438,2]
[354240308,1740359446690,-500.0,0.00016438,2]
[354240310,1740359446699,-500.0,0.00016438,2]
[354240319,1740359446775,-17.5173168,0.00016438,2]
[354240321,1740359446787,-676.16000008,0.00016438,2]
[354240333,1740359446896,-401.0,0.00016438,2]
[354240336,1740359446907,-616.75268312,0.00016438,2]
[354240338,1740359446916,-2632.98,0.00016438,2]
[354240340,1740359446925,-500.0,0.00016438,2]
[354240342,1740359446934,-591.38,0.00016438,2]
[354240344,1740359446943,-1276.71,0.00016438,2]
[354240346,1740359446956,-598.82,0.00016438,2]
[354240348,1740359446965,-500.0,0.00016438,2]
[354240350,1740359446975,-500.0,0.00016438,2]
[354240351,1740359446984,-2758.98,0.00016438,2]
[354240353,1740359446994,-634.3,0.00016438,2]
[354240355,1740359447003,-1469.41,0.00016438,2]
[354240357,1740359447012,-929.11,0.00016438,2]
[354240359,1740359447021,-5893.61,0.00016438,2]
[354240361,1740359447030,-943.23,0.00016438,2]
[354240363,1740359447040,-500.0,0.00016438,2]
[354240365,1740359447049,-500.0,0.00016438,2]
[354240367,1740359447058,-1646.47202038,0.00016438,2]
[354240368,1740359447070,-67.19797962,0.00016438,2]
[354240369,1740359447080,-1085.77322038,0.00016438,2]
[354240370,1740359447091,-1166.93677962,0.00016438,2]
[354240371,1740359447100,-500.0,0.00016438,2]
[354240372,1740359447109,-851.62,0.00016438,2]
[354240373,1740359447118,-500.0,0.00016438,2]
[354240374,1740359447127,-1027.84,0.00016438,2]
[354240375,1740359447136,-2220.48674218,0.00016438,2]
[354240376,1740359447148,-2479.60325782,0.00016438,2]
[354240377,1740359447158,-500.0,0.00016438,2]
[354240378,1740359447167,-863.68127823,0.00016438,2]
[354240379,1740359447178,-737.07872177,0.00016438,2]
[354240380,1740359447189,-62.99127023,0.00016438,2]
[354240381,1740359447200,-437.00872977,0.00016438,2]
[354240382,1740359447211,-500.0,0.00016438,2]
[354240383,1740359447221,-1785.79,0.00016438,2]
[354240384,1740359447230,-1603.19597969,0.00016438,2]
[354240385,1740359447755,-5102.07402031,0.00016438,2]
[354240386,1740359447764,-1024.4,0.00016438,2]
[354240387,1740359447773,-871.42578074,0.00016438,2]
[354240388,1740359447785,-102.02421926,0.00016438,2]
[354240389,1740359447794,-500.0,0.00016438,2]
[354240390,1740359447803,-2023.03,0.00016438,2]
[354240391,1740359447812,-1432.04,0.00016438,2]
[354240392,1740359447822,-500.0,0.00016438,2]
[354240393,1740359447834,-2135.95,0.00016438,2]
[354240394,1740359447843,-1134.23,0.00016438,2]
[354240395,1740359447852,-671.43,0.00016438,2]
[354240396,1740359447862,-1375.53,0.00016438,2]
[354240397,1740359447871,-2172.13,0.00016438,2]
[354240398,1740359447880,-500.0,0.00016438,2]
[354240399,1740359447890,-500.0,0.00016438,2]
[354240400,1740359447899,-499.99535576,0.00016438,2]
[354240401,1740359447908,-5526.75,0.00016438,2]
[354240402,1740359447917,-844.35,0.00016438,2]
[354240403,1740359447926,-2805.86,0.00016438,2]
[354240404,1740359447936,-500.0,0.00016438,2]
[354240405,1740359447945,-500.0,0.00016438,2]
[354240406,1740359447954,-2669.47,0.00016438,2]
[354240407,1740359447965,-1235.76,0.00016438,2]
[354240408,1740359447974,-2857.2,0.00016438,2]
[354240409,1740359447983,-500.0,0.00016438,2]
[354240410,1740359447992,-1125.09,0.00016438,2]
[354240411,1740359448001,-500.0,0.00016438,2]
[354240412,1740359448011,-2576.28,0.00016438,2]
[354240413,1740359448021,-500.0,0.00016438,2]
[354240414,1740359448030,-500.0,0.00016438,2]
[354240415,1740359448039,-809.8,0.00016438,2]
[354240416,1740359448049,-500.0,0.00016438,2]
[354240417,1740359448058,-2373.71,0.00016438,2]
[354240418,1740359448067,-2686.38,0.00016438,2]
[354240419,1740359448076,-932.54,0.00016438,2]
[354240420,1740359448086,-521.79,0.00016438,2]
[354240421,1740359448095,-500.0,0.00016438,2]
[354240422,1740359448104,-500.0,0.00016438,2]
[354240423,1740359448114,-2627.87,0.00016438,2]
[354240424,1740359448123,-2234.62,0.00016438,2]
[354240425,1740359448133,-1936.71,0.00016438,2]
[354240426,1740359448143,-1733.02,0.00016438,2]
[354240427,1740359448153,-500.0,0.00016438,2]
[354240428,1740359448163,-500.0,0.00016438,2]
[354240429,1740359448173,-3199.53,0.00016438,2]
[354240430,1740359448183,-2300.93,0.00016438,2]
[354240431,1740359448193,-2046.58,0.00016438,2]
[354240432,1740359448203,-846.04,0.00016438,2]
[354240433,1740359448214,-608.40409748,0.00016438,2]
[354240434,1740359448224,-719.62,0.00016438,2]
[354240435,1740359448233,-500.0,0.00016438,2]
[354240436,1740359448243,-500.0,0.00016438,2]
[354240437,1740359448252,-1406.37,0.00016438,2]
[354240438,1740359448262,-1548.27,0.00016438,2]
[354240439,1740359448273,-500.0,0.00016438,2]
[354240440,1740359448282,-4999.99,0.00016438,2]
[354240441,1740359448292,-1021.77,0.00016438,2]
[354240442,1740359448302,-500.0,0.00016438,2]
[354240443,1740359448311,-2874.4,0.00016438,2]
[354240444,1740359448321,-500.0,0.00016438,2]
[354240445,1740359448330,-500.0,0.00016438,2]
[354240446,1740359448339,-500.0,0.00016438,2]
[354240447,1740359448349,-500.0,0.00016438,2]
[354240448,1740359448358,-3255.48,0.00016438,2]
[354240449,1740359448368,-1503.96,0.00016438,2]
[354240450,1740359448377,-2039.37,0.00016438,2]
[354240451,1740359448386,-500.0,0.00016438,2]
[354240452,1740359448396,-970.08,0.00016438,2]
[354240453,1740359448405,-2229.75,0.00016438,2]
[354240454,1740359448414,-500.0,0.00016438,2]
[354240455,1740359448423,-500.0,0.00016438,2]
[354240456,1740359448433,-550.06,0.00016438,2]
[354240457,1740359448443,-603.38,0.00016438,2]
[354240458,1740359448452,-1536.76,0.00016438,2]
[354240459,1740359448463,-2359.79,0.00016438,2]
[354240460,1740359448473,-500.0,0.00016438,2]
[354240461,1740359448482,-711.76,0.00016438,2]
[354240462,1740359448492,-500.0,0.00016438,2]
[354240463,1740359448501,-1744.12,0.00016438,2]
[354240464,1740359448511,-500.0,0.00016438,2]
[354240465,1740359448519,-1997.87,0.00016438,2]
[354240466,1740359448529,-1451.15,0.00016438,2]
[354240467,1740359448539,-2545.83,0.00016438,2]
[354240468,1740359448548,-1287.53,0.00016438,2]
[354240469,1740359448557,-500.0,0.00016438,2]
[354240470,1740359448566,-1552.54,0.00016438,2]
[354240471,1740359448576,-500.0,0.00016438,2]
[354240472,1740359448585,-841.05,0.00016438,2]
[354240473,1740359448594,-500.0,0.00016438,2]
[354240474,1740359448604,-1084.4,0.00016438,2]
[354240475,1740359448613,-500.0,0.00016438,2]
[354240476,1740359448622,-731.5,0.00016438,2]
[354240477,1740359448631,-500.0,0.00016438,2]
[354240478,1740359448641,-1763.7,0.00016438,2]
[354240479,1740359448650,-1918.47,0.00016438,2]
[354240480,1740359448659,-500.0,0.00016438,2]
[354240481,1740359448668,-870.4,0.00016438,2]
[354240482,1740359448677,-478.46145102,0.00016438,2]
[354240483,1740359448686,-916.44,0.00016438,2]
[354240484,1740359448695,-500.0,0.00016438,2]
[354240485,1740359448705,-1288.21,0.00016438,2]
[354240486,1740359448714,-2175.76,0.00016438,2]
[354240487,1740359448723,-500.0,0.00016438,2]
[354240488,1740359448732,-722.71,0.00016438,2]
[354240489,1740359448742,-1972.5,0.00016438,2]
[354240490,1740359448751,-1151.32,0.00016438,2]
[354240491,1740359448760,-500.0,0.00016438,2]
[354240492,1740359448768,-500.0,0.00016438,2]
[354240493,1740359448777,-1048.12,0.00016438,2]
[354240494,1740359448787,-939.63,0.00016438,2]
[354240495,1740359448797,-1478.27,0.00016438,2]
[354240496,1740359448806,-500.0,0.00016438,2]
[354240497,1740359448815,-1032.79,0.00016438,2]
[354240498,1740359448825,-1629.3,0.00016438,2]
[354240499,1740359448834,-500.0,0.00016438,2]
[354240500,1740359448843,-1104.34,0.00016438,2]
[354240501,1740359448853,-1467.94,0.00016438,2]
[354240502,1740359448862,-2033.29,0.00016438,2]
[354240503,1740359448872,-1098.84,0.00016438,2]
[354240504,1740359448881,-1012.21,0.00016438,2]
[354240505,1740359448890,-500.0,0.00016438,2]
[354240506,1740359448900,-962.13,0.00016438,2]
[354240507,1740359448909,-249.78092967,0.00016438,2]
[354240508,1740359448919,-519.64,0.00016438,2]
[354240509,1740359448928,-711.27,0.00016438,2]
[354240510,1740359448937,-607.94128863,0.00016438,2]
[354240511,1740359448946,-500.0,0.00016438,2]
[354240512,1740359448956,-500.0,0.00016438,2]
[354240513,1740359448966,-712.63,0.00016438,2]
[354240514,1740359448976,-776.92,0.00016438,2]
[354240515,1740359448985,-2862.04,0.00016438,2]
[354240516,1740359448995,-2504.12,0.00016438,2]
[354240517,1740359449005,-651.96,0.00016438,2]
[354240518,1740359449015,-2719.47,0.00016438,2]
[354240519,1740359449025,-919.99,0.00016438,2]
[354240520,1740359449034,-1748.77,0.00016438,2]
[354240521,1740359449044,-914.25,0.00016438,2]
[354240522,1740359449054,-500.0,0.00016438,2]
[354240523,1740359449063,-500.0,0.00016438,2]
[354240524,1740359449073,-1936.82,0.00016438,2]
[354240525,1740359449083,-1730.36,0.00016438,2]
[354240526,1740359449092,-706.14,0.00016438,2]
[354240527,1740359449102,-1235.75,0.00016438,2]
[354240528,1740359449111,-500.0,0.00016438,2]
[354240529,1740359449120,-527.7343114,0.00016438,2]
[354240530,1740359449129,-331.6,0.00016438,2]
[354240531,1740359449139,-153.955849,0.00016438,2]
[354240532,1740359449148,-500.0,0.00016438,2]
[354240533,1740359449157,-500.0,0.00016438,2]
[354240534,1740359449166,-500.0,0.00016438,2]
[354240535,1740359449177,-1006.61,0.00016438,2]
[354240536,1740359449186,-179.96735668,0.00016438,2]
[354240537,1740359449196,-2562.39353117,0.00016443,2]
[354240538,1740359449206,-150.0,0.00016445,2]
[354240539,1740359449217,-1609.5074346,0.00016447,2]
[354240540,1740359449227,-2562.39353117,0.00016463,2]
[354240541,1740359449236,-150.0,0.00016463,2]
[354240542,1740359449246,-1609.5074346,0.00016465,2]
[354240543,1740359449255,-150.0,0.00016465,2]
[354240544,1740359449264,-500.0,0.00016473,2]
[354240545,1740359449274,-150.0,0.00016478,2]
[354240546,1740359449283,-2562.39353117,0.00016482,2]
[354240547,1740359449292,-1609.5074346,0.00016483,2]
[354240548,1740359449302,-20456.46792045,0.000165,2]
[354240549,1740359449311,-2562.39353117,0.00016501,2]
[354240550,1740359449321,-1609.5074346,0.00016501,2]
[354240551,1740359449330,-504.84551014,0.00016501,2]
[354240552,1740359449340,-500.0,0.00016519,2]
[354240553,1740359449349,-560.57,0.00016519,2]
[354240554,1740359449359,-500.0,0.00016519,2]
[354240555,1740359449368,-152.23,0.0001652,2]
[354240556,1740359449377,-500.0,0.0001652,2]
[354240557,1740359449386,-500.0,0.0001652,2]
[354240558,1740359449396,-500.0,0.0001652,2]
[354240559,1740359449405,-500.0,0.0001652,2]
[354240560,1740359449415,-572.56179204,0.0001652,2]
[354240561,1740359449424,-500.0,0.0001652,2]
[354240562,1740359449434,-500.0,0.0001652,2]
[354240563,1740359449446,-500.0,0.0001652,2]
[354240564,1740359449455,-500.0,0.0001652,2]
[354240565,1740359449466,-700.59,0.0001652,2]
[354240566,1740359449476,-500.0,0.0001652,2]
[354240567,1740359449486,-500.0,0.0001652,2]
[354240568,1740359449496,-500.0,0.0001652,2]
[354240569,1740359449505,-500.0,0.0001652,2]
[354240570,1740359449515,-500.0,0.0001652,2]
[354240571,1740359449524,-500.0,0.0001652,2]
[354240572,1740359449534,-568.1,0.0001652,2]
[354240573,1740359449543,-500.0,0.0001652,2]
[354240574,1740359449552,-621.76,0.0001652,2]
[354240575,1740359449561,-632.4,0.0001652,2]
[354240576,1740359449570,-355.60943407,0.0001652,2]
[354240577,1740359449579,-500.0,0.0001652,2]
[354240578,1740359449588,-500.0,0.0001652,2]
[354240579,1740359449598,-675.14,0.0001652,2]
[354240580,1740359449607,-500.0,0.0001652,2]
[354240581,1740359449617,-500.0,0.0001652,2]
[354240582,1740359449626,-500.0,0.0001652,2]
[354240583,1740359449635,-211.665297,0.0001652,2]
[354240584,1740359449645,-500.0,0.0001652,2]
[354240585,1740359449654,-1194.2,0.0001652,2]
[354240586,1740359449663,-500.0,0.0001652,2]
[354240587,1740359449672,-699.67,0.0001652,2]
[354240588,1740359449681,-500.0,0.0001652,2]
[354240589,1740359449691,-1229.09,0.0001652,2]
[354240590,1740359449700,-500.0,0.0001652,2]
[354240591,1740359449709,-507.69,0.0001652,2]
[354240592,1740359449719,-1136.25,0.0001652,2]
[354240593,1740359449728,-500.0,0.0001652,2]
[354240594,1740359449737,-500.0,0.0001652,2]
[354240595,1740359449746,-308.947847,0.0001652,2]
[354240596,1740359449755,-500.0,0.0001652,2]
[354240597,1740359449764,-500.0,0.0001652,2]
[354240598,1740359449773,-1830.46,0.0001652,2]
[354240599,1740359449783,-500.0,0.0001652,2]
[354240600,1740359449792,-500.0,0.0001652,2]
[354240601,1740359449801,-500.0,0.0001652,2]
[354240602,1740359449810,-1503.08,0.0001652,2]
[354240603,1740359449819,-500.0,0.0001652,2]
[354240604,1740359449828,-667.23,0.0001652,2]
[354240605,1740359449837,-500.0,0.0001652,2]
[354240606,1740359449846,-500.0,0.0001652,2]
[354240607,1740359449855,-579.34,0.0001652,2]
[354240608,1740359449865,-500.0,0.0001652,2]
[354240609,1740359449874,-500.0,0.0001652,2]
[354240610,1740359449883,-500.0,0.0001652,2]
[354240611,1740359449892,-500.0,0.0001652,2]
[354240612,1740359449901,-845.79,0.0001652,2]
[354240613,1740359449910,-1603.36,0.0001652,2]
[354240614,1740359449919,-500.0,0.0001652,2]
[354240615,1740359449928,-500.0,0.0001652,2]
[354240616,1740359449937,-500.0,0.0001652,2]
[354240617,1740359449946,-500.0,0.0001652,2]
[354240618,1740359449955,-500.0,0.0001652,2]
[354240619,1740359449966,-848.91,0.0001652,2]
[354240620,1740359449975,-500.0,0.0001652,2]
[354240621,1740359449984,-723.11,0.0001652,2]
[354240622,1740359449993,-500.0,0.0001652,2]
[354240623,1740359450002,-500.0,0.0001652,2]
[354240624,1740359450012,-500.0,0.0001652,2]
[354240625,1740359450021,-500.0,0.0001652,2]
[354240626,1740359450030,-500.0,0.0001652,2]
[354240627,1740359450039,-820.38,0.0001652,2]
[354240628,1740359450048,-500.0,0.0001652,2]
[354240629,1740359450056,-806.2,0.0001652,2]
[354240630,1740359450065,-1062.71,0.0001652,2]
[354240631,1740359450074,-568.8,0.0001652,2]
[354240632,1740359450083,-1421.14,0.0001652,2]
[354240633,1740359450092,-679.64,0.0001652,2]
[354240634,1740359450101,-500.0,0.0001652,2]
[354240635,1740359450110,-500.0,0.0001652,2]
[354240636,1740359450119,-500.0,0.0001652,2]
[354240637,1740359450128,-869.98,0.0001652,2]
[354240638,1740359450137,-500.0,0.0001652,2]
[354240639,1740359450146,-827.8,0.0001652,2]
[354240640,1740359450155,-500.0,0.0001652,2]
[354240641,1740359450164,-606.04,0.0001652,2]
[354240642,1740359450173,-568.11,0.0001652,2]
[354240643,1740359450182,-758.8,0.0001652,2]
[354240644,1740359450191,-500.0,0.0001652,2]
[354240645,1740359450200,-500.0,0.0001652,2]
[354240646,1740359450210,-500.0,0.0001652,2]
[354240647,1740359450219,-1229.39,0.0001652,2]
[354240648,1740359450228,-500.0,0.0001652,2]
[354240649,1740359450238,-500.0,0.0001652,2]
[354240650,1740359450247,-1034.75,0.0001652,2]
[354240651,1740359450256,-500.0,0.0001652,2]
[354240652,1740359450265,-1345.86,0.0001652,2]
[354240653,1740359450275,-606.51,0.0001652,2]
[354240654,1740359450284,-500.0,0.0001652,2]
[354240655,1740359450293,-500.0,0.0001652,2]
[354240656,1740359450302,-500.0,0.0001652,2]
[354240657,1740359450311,-500.0,0.0001652,2]
[354240658,1740359450320,-500.0,0.0001652,2]
[354240659,1740359450330,-500.0,0.0001652,2]
[354240660,1740359450339,-625.89,0.0001652,2]
[354240661,1740359450349,-500.0,0.0001652,2]
[354240662,1740359450358,-650.73,0.0001652,2]
[354240663,1740359450367,-500.0,0.0001652,2]
[354240664,1740359450375,-966.63,0.0001652,2]
[354240665,1740359450384,-611.09,0.0001652,2]
[354240666,1740359450393,-784.33,0.0001652,2]
[354240667,1740359450403,-977.79,0.0001652,2]
[354240668,1740359450412,-500.0,0.0001652,2]
[354240669,1740359450421,-614.59,0.0001652,2]
[354240670,1740359450430,-545.82,0.0001652,2]
[354240671,1740359450443,-500.0,0.0001652,2]
[354240672,1740359450453,-500.0,0.0001652,2]
[354240673,1740359450464,-587.56,0.0001652,2]
[354240674,1740359450473,-500.0,0.0001652,2]
[354240675,1740359450483,-658.76,0.0001652,2]
[354240676,1740359450493,-500.0,0.0001652,2]
[354240677,1740359450503,-500.0,0.0001652,2]
[354240678,1740359450513,-500.0,0.0001652,2]
[354240679,1740359450522,-500.0,0.0001652,2]
[354240680,1740359450531,-557.19,0.0001652,2]
[354240681,1740359450540,-506.92,0.0001652,2]
[354240682,1740359450550,-500.0,0.0001652,2]
[354240683,1740359450559,-500.0,0.0001652,2]
[354240684,1740359450568,-282.27667155,0.0001652,2]
[354240685,1740359450578,-500.0,0.0001652,2]
[354240686,1740359450587,-500.0,0.0001652,2]
[354240687,1740359450596,-958.04,0.0001652,2]
[354240688,1740359450606,-500.0,0.0001652,2]
[354240689,1740359450615,-645.73,0.0001652,2]
[354240690,1740359450625,-500.0,0.0001652,2]
[354240691,1740359450635,-152.459197,0.0001652,2]
[354240692,1740359450645,-500.0,0.0001652,2]
[354240693,1740359450654,-500.0,0.0001652,2]
[354240694,1740359450664,-500.0,0.0001652,2]
[354240695,1740359450674,-500.0,0.0001652,2]
[354240696,1740359450683,-517.65,0.0001652,2]
[354240697,1740359450694,-500.0,0.0001652,2]
[354240698,1740359450703,-580.94,0.0001652,2]
[354240699,1740359450714,-500.0,0.0001652,2]
[354240700,1740359450724,-500.0,0.0001652,2]
[354240701,1740359450734,-500.0,0.0001652,2]
[354240702,1740359450744,-500.0,0.0001652,2]
[354240703,1740359450753,-664.02,0.0001652,2]
[354240704,1740359450763,-500.0,0.0001652,2]
[354240705,1740359450772,-560.2,0.0001652,2]
[354240706,1740359450782,-1012.01,0.0001652,2]
[354240707,1740359450792,-610.01,0.0001652,2]
[354240708,1740359450802,-500.0,0.0001652,2]
[354240709,1740359450812,-500.0,0.0001652,2]
[354240710,1740359450822,-592.64,0.0001652,2]
[354240711,1740359450831,-500.0,0.0001652,2]
[354240712,1740359450841,-500.0,0.0001652,2]
[354240713,1740359450851,-500.0,0.0001652,2]
[354240714,1740359450861,-522.3,0.0001652,2]
[354240715,1740359450871,-912.85,0.0001652,2]
[354240716,1740359450881,-500.0,0.0001652,2]
[354240717,1740359450892,-500.0,0.0001652,2]
[354240718,1740359450902,-1072.75,0.0001652,2]
[354240719,1740359450912,-981.45,0.0001652,2]
[354240720,1740359450922,-500.0,0.0001652,2]
[354240721,1740359450931,-550.97,0.0001652,2]
[354240722,1740359450942,-907.18,0.0001652,2]
[354240723,1740359450952,-500.0,0.0001652,2]
[354240724,1740359450962,-567.23,0.0001652,2]
[354240725,1740359450972,-639.78,0.0001652,2]
[354240726,1740359450982,-1495.16,0.0001652,2]
[354240727,1740359450992,-500.0,0.0001652,2]
[354240728,1740359451002,-500.0,0.0001652,2]
[354240729,1740359451011,-500.0,0.0001652,2]
[354240730,1740359451021,-500.0,0.0001652,2]
[354240731,1740359451030,-500.0,0.0001652,2]
[354240732,1740359451040,-588.52,0.0001652,2]
[354240733,1740359451050,-500.0,0.0001652,2]
[354240734,1740359451059,-500.0,0.0001652,2]
[354240735,1740359451069,-704.63,0.0001652,2]
[354240736,1740359451079,-1026.2,0.0001652,2]
[354240737,1740359451088,-863.15,0.0001652,2]
[354240738,1740359451098,-500.0,0.0001652,2]
[354240739,1740359451108,-500.0,0.0001652,2]
[354240740,1740359451117,-500.0,0.0001652,2]
[354240741,1740359451127,-563.29,0.0001652,2]
[354240742,1740359451136,-500.0,0.0001652,2]
[354240743,1740359451146,-809.99,0.0001652,2]
[354240744,1740359451156,-500.0,0.0001652,2]
[354240745,1740359451166,-809.65,0.0001652,2]
[354240746,1740359451176,-500.0,0.0001652,2]
[354240747,1740359451186,-1007.88,0.0001652,2]
[354240748,1740359451196,-614.25,0.0001652,2]
[354240749,1740359451206,-533.37,0.0001652,2]
[354240750,1740359451218,-756.64,0.0001652,2]
[354240751,1740359451227,-500.0,0.0001652,2]
[354240752,1740359451237,-500.0,0.0001652,2]
[354240753,1740359451246,-500.0,0.0001652,2]
[354240754,1740359451256,-500.0,0.0001652,2]
[354240755,1740359451265,-500.0,0.0001652,2]
[354240756,1740359451275,-1268.52,0.0001652,2]
[354240757,1740359451284,-555.69,0.0001652,2]
[354240758,1740359451294,-500.0,0.0001652,2]
[354240759,1740359451303,-500.0,0.0001652,2]
[354240760,1740359451313,-500.0,0.0001652,2]
[354240761,1740359451323,-500.0,0.0001652,2]
[354240762,1740359451332,-162.15701506,0.0001652,2]
[354240763,1740359451668,-975.77298494,0.0001652,2]
[354240764,1740359451678,-11.98702962,0.0001652,2]
[354240765,1740359451691,-488.01297038,0.0001652,2]
[354240766,1740359451701,-521.74,0.0001652,2]
[354240767,1740359451713,-500.0,0.0001652,2]
[354240768,1740359451724,-449.80702962,0.0001652,2]
[354240769,1740359451812,-786.57297038,0.0001652,2]
[354240770,1740359451822,-500.0,0.0001652,2]
[354240771,1740359451832,-827.59,0.0001652,2]
[354240772,1740359451842,-500.0,0.0001652,2]
[354240773,1740359451852,-500.0,0.0001652,2]
[354240774,1740359451864,-500.0,0.0001652,2]
[354240775,1740359451875,-500.0,0.0001652,2]
[354240776,1740359451885,-152.02464288,0.0001652,2]
[354240777,1740359451931,-347.97535712,0.0001652,2]
[354240778,1740359451942,-464.45069346,0.0001652,2]
[354240779,1740359451955,-65.58930654,0.0001652,2]
[354240780,1740359451970,-274.51263228,0.0001652,2]
[354240781,1740359451983,-225.48736772,0.0001652,2]
[354240782,1740359451995,-500.0,0.0001652,2]